bitfinex/quotes_BTCUSD_20250102
["timestamp","ask_amount","ask_price","bid_price","bid_amount"]
[1735831673038,8.55e-05,96700.0,96692.0,0.206842]
[1735831673229,8.55e-05,96700.0,96686.0,0.01024337]
[1735831673230,0.206837,96695.0,96686.0,0.01024337]
[1735831673439,0.206839,96694.0,96686.0,0.01024337]
[1735831673681,0.207839,96694.0,96681.0,0.206864]
[1735831674111,0.22402943,96694.0,96681.0,0.206864]
[1735831674298,0.01619043,96694.0,96682.0,0.10398632]
[1735831674657,0.001,96695.0,96684.0,0.206859]
[1735831674859,0.001,96695.0,96691.0,0.206843]
[1735831675114,8.55e-05,96700.0,96697.0,0.20683]
[1735831675341,8.55e-05,96700.0,96699.0,0.206827]
[1735831675526,8.55e-05,96700.0,96699.0,0.31081332]
[1735831676846,8.55e-05,96700.0,96699.0,0.38891332]
[1735831677788,0.20569998,96724.0,96714.0,0.206794]
[1735831678038,0.20569998,96724.0,96699.0,0.18208632]
[1735831678039,0.206776,96723.0,96700.0,0.206825]
[1735831678271,0.206779,96722.0,96700.0,0.10398632]
[1735831678515,0.206774,96724.0,96711.0,0.206799]
[1735831678687,0.20679,96717.0,96704.0,0.206814]
[1735831678840,0.20679,96717.0,96714.0,0.001]
[1735831679247,0.206767,96727.0,96715.0,0.10398632]
[1735831679603,0.206794,96715.0,96701.0,0.206823]
[1735831679798,0.206794,96715.0,96703.0,0.206818]
[1735831679974,0.206794,96715.0,96705.0,0.206814]
[1735831680175,0.413588,96715.0,96705.0,0.10398632]
[1735831681002,0.004,96717.0,96687.0,0.206852]
[1735831681170,0.004,96717.0,96688.0,0.10398632]
[1735831681378,0.001,96715.0,96688.0,0.10398632]
[1735831681581,0.001,96715.0,96673.0,0.206882]
[1735831681582,0.173,96710.0,96673.0,0.206882]
[1735831681779,0.206847,96690.0,96675.0,0.206878]
[1735831681986,0.206847,96690.0,96676.0,0.10398632]
[1735831682325,0.206855,96686.0,96676.0,0.10398632]
[1735831683346,0.004,96690.0,96656.0,0.206917]
[1735831683587,0.20688,96674.0,96673.0,0.00014758]
[1735831684546,0.22307464,96674.0,96673.0,0.00014758]
[1735831684743,0.22307464,96674.0,96673.0,0.00214758]
[1735831685350,0.22307464,96674.0,96673.0,0.00014758]
[1735831685705,0.22407464,96674.0,96673.0,0.00014758]
[1735831685990,0.22607464,96674.0,96673.0,0.00014758]
[1735831687945,0.48586632,96674.0,96673.0,0.00014758]
[1735831688101,0.59086632,96674.0,96673.0,0.00114758]
[1735831688294,0.58886632,96674.0,96673.0,0.00114758]
[1735831688718,0.49186632,96674.0,96673.0,0.00114758]
[1735831688932,0.48386632,96674.0,96673.0,0.00014758]
[1735831689309,0.49286632,96674.0,96673.0,0.00114758]
[1735831689509,0.49286632,96674.0,96673.0,0.00014758]
[1735831689890,0.37488,96674.0,96673.0,0.00114758]
[1735831690095,0.36588,96674.0,96673.0,0.00014758]
[1735831690373,0.005,96674.0,96673.0,0.00014758]
[1735831690591,0.206841,96693.0,96673.0,0.00014758]
[1735831690799,0.206841,96693.0,96674.0,0.20688]
[1735831691016,0.005,96674.0,96673.0,0.00014758]
[1735831691641,0.009,96674.0,96673.0,0.00114758]
[1735831691852,0.206856,96686.0,96674.0,0.20688]
[1735831692057,0.206832,96697.0,96682.0,0.206862]
[1735831692229,0.0821,96712.0,96675.0,0.10398632]
[1735831692230,0.206843,96692.0,96675.0,0.10398632]
[1735831692433,0.01619214,96684.0,96683.0,0.20686]
[1735831692642,0.01619214,96684.0,96678.0,0.206871]
[1735831692840,0.01619214,96684.0,96675.0,0.10398632]
[1735831692841,0.003,96674.0,96673.0,0.00014758]
[1735831693221,0.206861,96683.0,96673.0,0.00014758]
[1735831693423,0.206871,96679.0,96673.0,0.00014758]
[1735831693769,0.206878,96676.0,96673.0,0.00014758]
[1735831693941,0.413756,96676.0,96673.0,0.00014758]
[1735831694129,0.20687,96679.0,96673.0,0.00014758]
[1735831694335,0.01619279,96681.0,96673.0,0.00014758]
[1735831694954,0.01619279,96681.0,96675.0,0.001]
[1735831695344,0.001,96676.0,96673.0,0.00014758]
[1735831695568,0.001,96676.0,96673.0,0.00031858]
[1735831695887,0.004,96681.0,96673.0,0.00031858]
[1735831696094,0.206859,96685.0,96673.0,0.00031858]
[1735831696293,0.413718,96685.0,96673.0,0.00031858]
[1735831696518,0.15,96688.0,96673.0,0.00031858]
[1735831696730,8.55e-05,96700.0,96673.0,0.00031858]
[1735831696869,0.007,96681.0,96675.0,0.001]
[1735831697517,0.007,96681.0,96676.0,0.31086232]
[1735831697794,0.009,96681.0,96676.0,0.31086232]
[1735831698007,0.009,96681.0,96676.0,0.51773832]
[1735831698200,8.55e-05,96700.0,96677.0,0.078]
[1735831698397,8.55e-05,96700.0,96678.0,0.10398632]
[1735831698642,0.001,96681.0,96678.0,0.10398632]
[1735831698904,0.001,96681.0,96679.0,0.20687]
[1735831699184,8.55e-05,96700.0,96691.0,0.206843]
[1735831699389,0.0050855,96700.0,96695.0,0.413669]
[1735831699589,0.0050855,96700.0,96697.0,0.206831]
[1735831699791,0.0050855,96700.0,96699.0,0.206827]
[1735831699992,0.0050855,96700.0,96699.0,0.31081332]
[1735831700288,0.0050855,96700.0,96697.0,0.206831]
[1735831700598,8.55e-05,96700.0,96697.0,0.51764832]
[1735831700981,8.55e-05,96700.0,96692.0,0.041407]
[1735831701359,8.55e-05,96700.0,96697.0,0.206829]
[1735831701597,8.55e-05,96700.0,96698.0,0.10398632]
[1735831701758,0.0030855,96700.0,96697.0,0.001]
[1735831701958,8.55e-05,96700.0,96698.0,0.10398632]
[1735831702188,8.55e-05,96700.0,96698.0,0.31081532]
[1735831702568,0.0030855,96700.0,96699.0,0.10398632]
[1735831702794,8.55e-05,96700.0,96699.0,0.10398632]
[1735831704487,8.55e-05,96700.0,96699.0,0.32938632]
[1735831704880,8.55e-05,96700.0,96699.0,0.33138632]
[1735831705081,8.55e-05,96700.0,96699.0,0.32938632]
[1735831705281,8.55e-05,96700.0,96699.0,0.33238632]
[1735831705498,8.55e-05,96700.0,96699.0,0.34470811]
[1735831705702,8.55e-05,96700.0,96699.0,0.34170811]
[1735831705881,0.0010855,96700.0,96699.0,0.34970811]
[1735831706871,0.0010855,96700.0,96699.0,0.34770811]
[1735831707290,0.0010855,96700.0,96699.0,0.35170811]
[1735831707855,0.0010855,96700.0,96699.0,0.12630811]
[1735831708057,0.0010855,96700.0,96699.0,0.11598632]
[1735831708462,0.0010855,96700.0,96699.0,0.36598632]
[1735831708663,0.0010855,96700.0,96699.0,0.46598632]
[1735831708868,0.0010855,96700.0,96699.0,0.36598632]
[1735831709073,0.0010855,96700.0,96699.0,0.11598632]
[1735831709711,0.0010855,96700.0,96699.0,0.012]
[1735831710500,0.0010855,96700.0,96699.0,0.008]
[1735831710750,0.0010855,96700.0,96699.0,0.012]
[1735831711276,0.0010855,96700.0,96699.0,0.008]
[1735831711481,0.35727182,96700.0,96699.0,0.008]
[1735831711686,0.57807481,96700.0,96699.0,0.008]
[1735831711929,0.57807481,96700.0,96685.0,0.041418]
[1735831711930,0.413692,96690.0,96685.0,0.041418]
[1735831712128,0.25,96688.0,96685.0,0.041418]
[1735831712363,0.379855,96686.0,96685.0,0.041418]
[1735831712649,0.356874,96677.0,96673.0,0.00031858]
[1735831713079,0.71276032,96677.0,96673.0,0.00031858]
[1735831713261,0.456921,96655.0,96654.0,0.09216277]
[1735831713465,0.56090732,96655.0,96654.0,0.09216277]
[1735831713665,0.56090732,96655.0,96650.0,0.000171]
[1735831713666,0.206925,96654.0,96650.0,0.000171]
[1735831714080,0.01619767,96655.0,96650.0,0.000171]
[1735831714284,0.01619767,96655.0,96651.0,0.10398632]
[1735831714496,0.206923,96654.0,96650.0,0.000171]
[1735831714697,0.01619767,96655.0,96650.0,0.000171]
[1735831715079,0.413847,96654.0,96650.0,0.000171]
[1735831715280,0.01619767,96655.0,96650.0,0.000171]
[1735831715281,0.01719767,96655.0,96650.0,0.000171]
[1735831715498,0.206923,96654.0,96650.0,0.000171]
[1735831715693,0.02619767,96655.0,96650.0,0.000171]
[1735831715907,0.001,96655.0,96650.0,0.000171]
[1735831716078,0.413848,96654.0,96650.0,0.000171]
[1735831716718,0.15,96651.0,96650.0,0.000171]
[1735831717718,0.66733,96651.0,96650.0,0.000171]
[1735831718382,0.87531632,96651.0,96650.0,0.000171]
[1735831718673,0.1,96644.0,96614.0,0.02047941]
[1735831718858,0.206977,96629.0,96614.0,0.02047941]
[1735831719058,0.724307,96629.0,96618.0,0.04144]
[1735831719361,0.51733,96629.0,96622.0,0.206991]
[1735831719568,0.51733,96629.0,96617.0,0.207001]
[1735831719710,0.51733,96629.0,96622.0,0.20699]
[1735831719911,0.51740116,96629.0,96622.0,0.20699]
[1735831720119,0.51740116,96629.0,96627.0,0.04144]
[1735831720120,0.52440116,96629.0,96627.0,0.04144]
[1735831720913,0.52640116,96629.0,96627.0,0.04144]
[1735831721553,0.52440116,96629.0,96627.0,0.04144]
[1735831721964,0.52640116,96629.0,96627.0,0.04144]
[1735831722171,0.51940116,96629.0,96627.0,0.04144]
[1735831722376,0.51940116,96629.0,96608.0,0.20702]
[1735831722377,0.51840116,96629.0,96608.0,0.20702]
[1735831722548,0.52140116,96629.0,96618.0,0.041445]
[1735831722770,0.66740116,96629.0,96618.0,0.041445]
[1735831723057,0.68460211,96629.0,96600.0,0.01619859]
[1735831723210,0.68460211,96629.0,96607.0,0.041445]
[1735831723405,0.68360211,96629.0,96607.0,0.041445]
[1735831723831,0.69260211,96629.0,96608.0,0.207021]
[1735831724039,0.69260211,96629.0,96607.0,0.041445]
[1735831724251,0.69460211,96629.0,96607.0,0.041445]
[1735831724475,0.54460211,96629.0,96607.0,0.041445]
[1735831724697,0.54260211,96629.0,96617.0,0.207002]
[1735831724913,0.54260211,96629.0,96626.0,0.206983]
[1735831724914,0.52640116,96629.0,96626.0,0.206983]
[1735831725123,0.52040116,96629.0,96617.0,0.0789]
[1735831725337,0.52040116,96629.0,96621.0,0.206993]
[1735831725542,0.52640116,96629.0,96621.0,0.413986]
[1735831726184,0.53140116,96629.0,96625.0,0.206983]
[1735831726433,0.53240116,96629.0,96625.0,0.206983]
[1735831726659,0.53240116,96629.0,96621.0,0.206993]
[1735831726893,0.51840116,96629.0,96621.0,0.206993]
[1735831727127,0.51840116,96629.0,96625.0,0.206983]
[1735831727849,0.51740116,96629.0,96625.0,0.206983]
[1735831728577,0.52040116,96629.0,96625.0,0.206983]
[1735831728824,0.51740116,96629.0,96625.0,0.206983]
[1735831729065,0.51840116,96629.0,96628.0,0.001171]
[1735831730216,0.51740116,96629.0,96628.0,0.001171]
[1735831731130,0.51740116,96629.0,96628.0,0.000171]
[1735831731338,0.51740116,96629.0,96628.0,0.001171]
[1735831732061,0.51840116,96629.0,96628.0,0.000171]
[1735831732281,0.51740116,96629.0,96628.0,0.000171]
[1735831732494,0.51740116,96629.0,96628.0,0.001171]
[1735831732649,0.51840116,96629.0,96628.0,0.001171]
[1735831733152,0.51840116,96629.0,96628.0,0.10515732]
[1735831733468,0.51840116,96629.0,96628.0,0.12815732]
[1735831733715,0.51840116,96629.0,96628.0,0.45435732]
[1735831734476,0.51840116,96629.0,96628.0,0.18035732]
[1735831734730,0.51840116,96629.0,96628.0,0.10415732]
[1735831734962,0.52740116,96629.0,96628.0,0.000171]
[1735831735453,0.52740116,96629.0,96628.0,0.10415732]
[1735831735970,0.51840116,96629.0,96628.0,0.10415732]
[1735831736446,0.51740116,96629.0,96628.0,0.20825732]
[1735831736899,0.52640116,96629.0,96628.0,0.35825732]
[1735831737374,0.51740116,96629.0,96628.0,0.35825732]
[1735831737587,0.51840116,96629.0,96628.0,0.50965732]
[1735831738010,0.51840116,96629.0,96628.0,0.51969123]
[1735831738217,0.51840116,96629.0,96628.0,0.41869123]
[1735831738621,0.51840116,96629.0,96628.0,0.42069123]
[1735831739031,0.51840116,96629.0,96628.0,0.41869123]
[1735831739602,0.51940116,96629.0,96628.0,0.42069123]
[1735831739823,0.51840116,96629.0,96628.0,0.41869123]
[1735831740157,0.51940116,96629.0,96628.0,0.42069123]
[1735831740422,0.51940116,96629.0,96628.0,0.41869123]
[1735831740672,0.51840116,96629.0,96628.0,0.41869123]
[1735831740851,0.51940116,96629.0,96628.0,0.52069123]
[1735831741200,0.51940116,96629.0,96628.0,0.42069123]
[1735831741423,0.50622769,96629.0,96628.0,0.51869123]
[1735831741649,0.50622769,96629.0,96628.0,0.61869123]
[1735831742191,0.50522769,96629.0,96628.0,0.61669123]
[1735831742572,0.34428532,96629.0,96628.0,0.88432123]
[1735831742782,0.34428532,96629.0,96628.0,0.62269123]
[1735831742783,0.27718583,96629.0,96628.0,0.62269123]
[1735831742989,0.16650402,96629.0,96628.0,0.73295923]
[1735831743156,0.11063027,96629.0,96628.0,0.62569123]
[1735831743390,0.000171,96650.0,96649.0,0.456934]
[1735831743616,0.000171,96650.0,96649.0,0.68441274]
[1735831743818,0.000171,96650.0,96649.0,0.78441274]
[1735831744033,0.000171,96650.0,96649.0,0.86321274]
[1735831744239,0.0795,96694.0,96649.0,0.86321274]
[1735831744240,0.0795,96694.0,96662.0,0.023]
[1735831744447,0.0795,96694.0,96672.0,0.206885]
[1735831744666,0.20684,96693.0,96673.0,0.10398632]
[1735831744880,0.20684,96693.0,96680.0,0.206867]
[1735831745089,0.20684,96693.0,96681.0,0.10398632]
[1735831745300,0.0795,96694.0,96671.0,0.206886]
[1735831745503,0.206879,96675.0,96656.0,0.02038553]
[1735831745716,0.206876,96677.0,96661.0,0.206908]
[1735831745923,0.206862,96683.0,96662.0,0.10398632]
[1735831746138,0.00014765,96677.0,96672.0,0.206883]
[1735831746349,0.00014765,96677.0,96674.0,0.41376]
[1735831746562,0.00014765,96677.0,96675.0,0.10398632]
[1735831747031,0.00214765,96677.0,96675.0,0.10398632]
[1735831747269,0.00214765,96677.0,96676.0,0.206876]
[1735831747554,0.00214765,96677.0,96676.0,0.31086232]
[1735831748313,0.00014765,96677.0,96676.0,0.31086232]
[1735831748557,0.00014765,96677.0,96676.0,0.33386232]
[1735831749248,0.00014765,96677.0,96676.0,0.31086232]
[1735831749701,0.00014765,96677.0,96676.0,0.58386232]
[1735831749873,6.5e-07,96677.0,96676.0,0.84745932]
[1735831750078,8.55e-05,96700.0,96698.0,0.356829]
[1735831750421,8.55e-05,96700.0,96698.0,0.48381532]
[1735831751249,8.55e-05,96700.0,96698.0,0.10398632]
[1735831751456,8.55e-05,96700.0,96675.0,0.01015739]
[1735831751622,8.55e-05,96700.0,96694.0,0.413675]
[1735831751820,8.55e-05,96700.0,96696.0,0.206833]
[1735831752030,8.55e-05,96700.0,96698.0,0.206829]
[1735831752183,8.55e-05,96700.0,96698.0,0.31081532]
[1735831752623,8.55e-05,96700.0,96698.0,0.31181532]
[1735831752822,0.001171,96699.0,96698.0,0.31881532]
[1735831753037,0.000171,96699.0,96698.0,0.31181532]
[1735831753255,0.000171,96699.0,96698.0,0.31081532]
[1735831753962,0.000171,96699.0,96698.0,0.31581532]
[1735831754163,0.000171,96699.0,96698.0,0.31281532]
[1735831754374,0.000171,96699.0,96698.0,0.32312638]
[1735831754578,0.001171,96699.0,96698.0,0.32912638]
[1735831755061,0.001171,96699.0,96698.0,0.31881532]
[1735831756120,0.000171,96699.0,96698.0,0.31081532]
[1735831756308,0.001171,96699.0,96698.0,0.31781532]
[1735831756546,0.001171,96699.0,96698.0,0.32081532]
[1735831756752,0.000171,96699.0,96698.0,0.31381532]
[1735831757012,0.000171,96699.0,96698.0,0.31681532]
[1735831757231,0.001171,96699.0,96698.0,0.31081532]
[1735831757394,0.001171,96699.0,96698.0,0.31481532]
[1735831757769,0.002171,96699.0,96698.0,0.31781532]
[1735831757973,0.002171,96699.0,96698.0,0.007]
[1735831758219,0.002171,96699.0,96698.0,0.009]
[1735831758419,0.002171,96699.0,96698.0,0.11298632]
[1735831759782,0.000171,96699.0,96698.0,0.10598632]
[1735831760387,0.000171,96699.0,96698.0,0.10998632]
[1735831760597,0.000171,96699.0,96698.0,0.10598632]
[1735831760810,0.000171,96699.0,96698.0,0.10398632]
[1735831761038,0.000171,96699.0,96698.0,0.10898632]
[1735831761247,0.000171,96699.0,96698.0,0.28398632]
[1735831761864,0.000171,96699.0,96698.0,0.28198632]
[1735831762295,0.000171,96699.0,96698.0,0.38198632]
[1735831762507,0.000171,96699.0,96698.0,0.38498632]
[1735831762710,0.000171,96699.0,96698.0,0.39526172]
[1735831763532,0.000171,96699.0,96698.0,0.41135498]
[1735831763672,0.00089417,96699.0,96698.0,0.42035498]
[1735831763870,0.00089417,96699.0,96698.0,0.41735498]
[1735831764126,6.7e-07,96700.0,96699.0,0.456827]
[1735831764327,6.7e-07,96700.0,96699.0,0.68381332]
[1735831765209,6.7e-07,96700.0,96699.0,0.76571332]
[1735831765843,6.7e-07,96700.0,96699.0,0.88101332]
[1735831766503,6.7e-07,96700.0,96699.0,2.38101332]
[1735831767174,6.7e-07,96700.0,96699.0,2.38401332]
[1735831767339,8.55e-05,96717.0,96716.0,0.373]
[1735831767554,0.00023313,96717.0,96716.0,0.48377732]
[1735831768137,0.00023313,96717.0,96716.0,0.58377732]
[1735831768540,0.00023313,96717.0,96716.0,0.58777732]
[1735831768846,0.00123313,96717.0,96716.0,0.59677732]
[1735831769888,0.00123313,96717.0,96716.0,0.61765321]
[1735831770093,0.00123313,96717.0,96716.0,0.51765321]
[1735831770267,0.00123313,96717.0,96716.0,0.52782903]
[1735831771872,0.00123313,96717.0,96716.0,0.72782903]
[1735831772150,0.00123313,96717.0,96716.0,0.62782903]
[1735831773228,0.00123313,96717.0,96716.0,0.72782903]
[1735831773435,0.00123313,96717.0,96716.0,0.62782903]
[1735831774271,0.00123313,96717.0,96716.0,0.72782903]
[1735831775143,8.55e-05,96728.0,96716.0,0.72782903]
[1735831775144,8.55e-05,96728.0,96727.0,0.379767]
[1735831775340,8.55e-05,96728.0,96727.0,0.48375332]
[1735831775763,8.55e-05,96728.0,96727.0,0.48789132]
[1735831777502,8.55e-05,96728.0,96727.0,0.49389132]
[1735831777710,1e-07,96731.0,96730.0,0.1]
[1735831777907,1e-07,96731.0,96730.0,0.37698632]
[1735831778986,1e-07,96731.0,96730.0,0.27898632]
[1735831780243,1e-07,96731.0,96730.0,0.12898632]
[1735831780697,1e-07,96731.0,96730.0,0.10598632]
[1735831781739,1e-07,96731.0,96730.0,0.10898632]
[1735831782237,1e-07,96731.0,96730.0,0.13198632]
[1735831782451,1e-07,96731.0,96730.0,0.28198632]
[1735831787564,1e-07,96731.0,96730.0,0.38198632]
[1735831787841,1e-07,96731.0,96730.0,0.48198632]
[1735831788063,1e-07,96731.0,96730.0,0.38198632]
[1735831788217,1e-07,96731.0,96730.0,0.48198632]
[1735831788423,1e-07,96731.0,96730.0,0.28198632]
[1735831793127,1e-07,96731.0,96730.0,0.48198632]
[1735831793716,1e-07,96731.0,96730.0,0.51420465]
[1735831794483,1e-07,96731.0,96730.0,1.08644922]
[1735831794703,1e-07,96731.0,96730.0,1.08344922]
[1735831794911,0.0002406,96745.0,96744.0,0.206731]
[1735831795104,0.0002406,96745.0,96744.0,0.33371732]
[1735831796059,0.0012406,96745.0,96744.0,0.33371732]
[1735831796510,0.0012406,96745.0,96744.0,0.31071732]
[1735831796853,0.0012406,96745.0,96744.0,0.33371732]
[1735831797540,0.0012406,96745.0,96744.0,0.31071732]
[1735831798120,0.0012406,96745.0,96744.0,0.33471732]
[1735831798781,0.0002406,96745.0,96744.0,0.33471732]
[1735831798999,0.0002406,96745.0,96744.0,0.49476998]
[1735831799842,0.0002406,96745.0,96744.0,0.31371732]
[1735831800333,0.0485406,96745.0,96744.0,0.001]
[1735831800549,0.20674,96740.0,96737.0,0.092621]
[1735831800761,0.284743,96738.0,96737.0,0.092621]
[1735831800981,0.1,96736.0,96735.0,0.01283151]
[1735831801192,0.206754,96733.0,96732.0,0.14497352]
[1735831801398,0.206713,96753.0,96732.0,0.14497352]
[1735831801613,0.0468,96743.0,96733.0,0.10398632]
[1735831801841,0.206752,96735.0,96732.0,0.14497352]
[1735831802256,0.206752,96735.0,96729.0,0.000171]
[1735831802257,0.206758,96731.0,96729.0,0.000171]
[1735831802460,0.20675,96736.0,96729.0,0.000171]
[1735831802635,0.20675,96735.0,96729.0,0.000171]
[1735831803242,0.206739,96740.0,96729.0,0.000171]
[1735831803595,0.0468,96743.0,96729.0,0.000171]
[1735831803596,0.206758,96732.0,96729.0,0.000171]
[1735831803870,0.413516,96732.0,96729.0,0.000171]
[1735831804843,0.207758,96732.0,96729.0,0.001171]
[1735831805252,0.414515,96732.0,96729.0,0.001171]
[1735831805646,0.004,96731.0,96729.0,0.001171]
[1735831805982,0.004,96731.0,96730.0,0.10398632]
[1735831806139,0.001,96732.0,96729.0,0.001171]
[1735831806522,0.417514,96732.0,96729.0,0.000171]
[1735831806751,0.210757,96732.0,96729.0,0.000171]
[1735831806953,0.418514,96732.0,96729.0,0.001171]
[1735831807359,0.417514,96732.0,96729.0,0.020171]
[1735831807765,0.418514,96732.0,96729.0,0.021171]
[1735831807942,0.417514,96732.0,96729.0,0.020171]
[1735831808328,0.210757,96732.0,96729.0,0.020171]
[1735831808533,0.418514,96732.0,96729.0,0.021171]
[1735831808943,0.414514,96732.0,96729.0,0.021171]
[1735831809346,0.417514,96732.0,96729.0,0.021171]
[1735831809730,0.207757,96732.0,96729.0,0.021171]
[1735831809935,0.206757,96732.0,96729.0,0.020171]
[1735831810186,0.206757,96732.0,96729.0,0.021171]
[1735831810187,0.009,96732.0,96729.0,0.021171]
[1735831810546,0.006,96732.0,96731.0,0.206758]
[1735831810746,0.006,96732.0,96729.0,0.021171]
[1735831810952,0.008,96732.0,96729.0,0.021171]
[1735831811177,0.214757,96732.0,96729.0,0.021171]
[1735831811481,0.421514,96732.0,96729.0,0.021171]
[1735831811646,0.404261,96730.0,96729.0,0.020171]
[1735831812206,0.0776,96731.0,96729.0,0.000171]
[1735831812407,0.206761,96730.0,96729.0,0.000171]
[1735831813226,0.002,96730.0,96729.0,0.000171]
[1735831813422,0.002,96730.0,96729.0,0.10415732]
[1735831813627,0.002,96730.0,96729.0,0.10515732]
[1735831814073,0.002,96730.0,96729.0,0.10415732]
[1735831814285,0.002,96730.0,96729.0,0.12715732]
[1735831814486,0.008,96730.0,96729.0,0.12815732]
[1735831815068,0.008,96730.0,96729.0,0.10515732]
[1735831815476,0.008,96730.0,96729.0,0.31192032]
[1735831815734,0.006,96730.0,96729.0,0.31192032]
[1735831816040,0.008,96730.0,96729.0,0.31192032]
[1735831816265,0.002,96730.0,96729.0,0.31092032]
[1735831816467,0.007,96730.0,96729.0,0.31192032]
[1735831816660,0.005,96730.0,96729.0,0.10515732]
[1735831816886,0.206745,96738.0,96729.0,0.10415732]
[1735831817090,0.002,96730.0,96729.0,0.10415732]
[1735831817301,0.002,96730.0,96729.0,0.31092032]
[1735831818429,0.002,96730.0,96729.0,0.000171]
[1735831818583,0.002,96730.0,96729.0,0.10415732]
[1735831818790,0.002,96730.0,96729.0,0.12715732]
[1735831819047,0.002,96730.0,96729.0,0.20465732]
[1735831819416,0.0002406,96745.0,96744.0,0.206731]
[1735831819613,0.0002406,96745.0,96744.0,0.31071732]
[1735831819820,0.0002406,96745.0,96744.0,0.33371732]
[1735831820022,0.0002406,96745.0,96744.0,0.34417441]
[1735831821853,0.0002406,96745.0,96744.0,0.67347441]
[1735831822615,0.0002406,96745.0,96744.0,0.44415105]
[1735831822851,0.0002406,96745.0,96733.0,0.206754]
[1735831823061,0.0002406,96745.0,96737.0,0.206746]
[1735831823267,0.0002406,96745.0,96738.0,0.10398632]
[1735831823465,0.0002406,96745.0,96744.0,0.209731]
[1735831823669,0.0012406,96745.0,96744.0,0.34371732]
[1735831823878,0.0002406,96745.0,96744.0,0.33371732]
[1735831824300,0.0042406,96745.0,96744.0,0.33371732]
[1735831824716,0.0042406,96745.0,96744.0,0.34397788]
[1735831824922,0.0042406,96745.0,96744.0,0.34697788]
[1735831825130,0.0042406,96745.0,96744.0,0.36723851]
[1735831825344,0.0042406,96745.0,96744.0,0.51723851]
[1735831825553,0.0032406,96745.0,96744.0,0.51723851]
[1735831825756,0.0032406,96745.0,96744.0,0.51923851]
[1735831826277,0.0002406,96745.0,96744.0,0.51623851]
[1735831826482,0.0002406,96745.0,96744.0,0.52023851]
[1735831826910,0.0002406,96745.0,96744.0,0.35397795]
[1735831827095,0.0012406,96745.0,96744.0,0.36097795]
[1735831827307,0.0012406,96745.0,96744.0,0.36297795]
[1735831827849,0.0002406,96745.0,96744.0,0.35597795]
[1735831828265,0.0002406,96745.0,96744.0,0.35997795]
[1735831828476,0.0002406,96745.0,96744.0,0.35797795]
[1735831828928,0.0002406,96745.0,96744.0,0.35997795]
[1735831829381,0.0002406,96745.0,96744.0,0.35797795]
[1735831829568,0.0002406,96745.0,96744.0,0.35597795]
[1735831829896,0.0002406,96745.0,96744.0,0.36097795]
[1735831830315,0.0002406,96745.0,96744.0,0.35897795]
[1735831830470,0.0002406,96745.0,96744.0,0.33597795]
[1735831830790,0.0002406,96745.0,96744.0,0.33097795]
[1735831831030,0.0012406,96745.0,96744.0,0.006]
[1735831831239,0.0012406,96745.0,96726.0,0.01024827]
[1735831831464,0.206733,96743.0,96730.0,0.10398632]
[1735831831671,0.0012406,96745.0,96742.0,0.206734]
[1735831831878,0.0012406,96745.0,96730.0,0.11117178]
[1735831832090,0.206733,96743.0,96731.0,0.10398632]
[1735831832298,0.0012406,96745.0,96743.0,0.206731]
[1735831832510,0.0022406,96745.0,96744.0,0.10398632]
[1735831832859,0.0012406,96745.0,96744.0,0.10598632]
[1735831833059,0.0012406,96745.0,96744.0,0.12898632]
[1735831833282,0.0012406,96745.0,96744.0,0.35498632]
[1735831833488,0.0012406,96745.0,96744.0,0.36542814]
[1735831833678,0.0002406,96745.0,96744.0,0.36342814]
[1735831834323,0.0002406,96745.0,96744.0,0.56342814]
[1735831834527,8.53e-05,96770.0,96760.0,0.1]
[1735831834733,0.0006922,96769.0,96768.0,0.66496532]
[1735831834929,0.0006922,96769.0,96768.0,0.71046532]
[1735831835164,0.0006922,96769.0,96768.0,0.81046532]
[1735831835566,8.53e-05,96770.0,96769.0,0.373]
[1735831835567,5e-07,96770.0,96769.0,0.373]
[1735831835761,5e-07,96770.0,96769.0,0.47698632]
[1735831835762,3e-08,96770.0,96769.0,0.47698632]
[1735831836795,1.3e-07,96776.0,96775.0,0.35]
[1735831836962,1.3e-07,96776.0,96775.0,0.45398632]
[1735831837390,1.3e-07,96776.0,96775.0,0.25398632]
[1735831838041,1.3e-07,96776.0,96775.0,0.27698632]
[1735831839192,1.3e-07,96776.0,96775.0,0.28098632]
[1735831839397,0.00100013,96776.0,96775.0,0.28998632]
[1735831839616,0.00100013,96776.0,96775.0,0.48998632]
[1735831839820,1.3e-07,96776.0,96775.0,0.48998632]
[1735831840024,0.0002,96809.0,96797.0,0.206617]
[1735831840235,0.0002,96809.0,96802.0,0.023]
[1735831840465,0.00034748,96809.0,96808.0,0.31058032]
[1735831841336,0.00034748,96809.0,96808.0,0.10398632]
[1735831842461,0.00034748,96809.0,96793.0,0.206624]
[1735831842666,0.206617,96798.0,96794.0,0.10398632]
[1735831842872,0.206617,96798.0,96780.0,0.09276479]
[1735831842873,0.206637,96788.0,96780.0,0.09276479]
[1735831843081,0.20664,96787.0,96765.0,0.09276479]
[1735831843297,0.0831,96788.0,96765.0,0.19675111]
[1735831843489,0.0831,96788.0,96767.0,0.206682]
[1735831843699,0.20664,96787.0,96768.0,0.10398632]
[1735831843902,0.0831,96788.0,96765.0,0.09276479]
[1735831843903,0.206647,96783.0,96765.0,0.09276479]
[1735831844114,0.206655,96780.0,96765.0,0.09276479]
[1735831844347,0.002,96787.0,96766.0,0.10398632]
[1735831844532,0.206671,96772.0,96766.0,0.10398632]
[1735831844706,0.206673,96771.0,96757.0,0.206702]
[1735831844911,0.206673,96771.0,96758.0,0.10398632]
[1735831845115,0.1,96784.0,96740.0,0.1321]
[1735831845328,0.0768,96760.0,96741.0,0.10398632]
[1735831845497,0.0465,96759.0,96740.0,0.05]
[1735831845709,0.206703,96757.0,96740.0,0.05]
[1735831845923,0.206735,96742.0,96740.0,0.0504922]
[1735831846590,0.206733,96743.0,96740.0,0.0504922]
[1735831846791,0.206729,96745.0,96740.0,0.0504922]
[1735831847210,0.15,96758.0,96741.0,0.10398632]
[1735831847731,0.206717,96751.0,96741.0,0.10398632]
[1735831847943,0.206728,96746.0,96740.0,0.0514922]
[1735831848072,0.206737,96741.0,96740.0,0.0504922]
[1735831848903,0.73612332,96741.0,96740.0,0.0514922]
[1735831849111,0.556754,96733.0,96732.0,0.000171]
[1735831849317,0.206805,96709.0,96708.0,0.02070292]
[1735831849571,0.206805,96709.0,96692.0,0.206842]
[1735831849770,0.206818,96704.0,96700.0,0.00031863]